[Event "*** Titled Tuesday 3|2 Blitz"]
[Site "Chess.com"]
[Date "2015.06.02"]
[Round "8"]
[White "Schemato"]
[Black "AnastasiaProtopopova"]
[Result "1-0"]
[WhiteElo "2045"]
[BlackElo "1864"]
[TimeControl "180+2"]
[EndTime "12:43:17 PDT"]
[Termination "Schemato won on time"]

1. c4 {[%clk 0:03:01.9]} 1... e5 {[%clk 0:02:56.2]} 2. g3 {[%clk 0:03:01.6]}
2... Nf6 {[%clk 0:02:55.7]} 3. Bg2 {[%clk 0:03:01.1]} 3... d5 {[%clk 0:02:56.6]}
4. cxd5 {[%clk 0:02:59.1]} 4... Nxd5 {[%clk 0:02:56.8]} 5. Nf3 {[%clk
0:02:57.5]} 5... Nc6 {[%clk 0:02:56.4]} 6. O-O {[%clk 0:02:57.7]} 6... Be7
{[%clk 0:02:54.1]} 7. d4 {[%clk 0:02:57.9]} 7... e4 {[%clk 0:02:40.8]} 8. Ne5
{[%clk 0:02:58.6]} 8... Nxe5 {[%clk 0:02:32.5]} 9. dxe5 {[%clk 0:02:59.1]} 9...
Bf5 {[%clk 0:02:33.9]} 10. Bxe4 {[%clk 0:02:55.8]} 10... Bxe4 {[%clk 0:02:25.8]}
11. Qa4+ {[%clk 0:02:56.5]} 11... c6 {[%clk 0:02:27.3]} 12. Qxe4 {[%clk
0:02:57.3]} 12... O-O {[%clk 0:02:28]} 13. Rd1 {[%clk 0:02:47.5]} 13... Qb6
{[%clk 0:02:22.2]} 14. Nd2 {[%clk 0:02:23.5]} 14... Bc5 {[%clk 0:02:14.9]} 15.
Qf3 {[%clk 0:01:53.6]} 15... Qb5 {[%clk 0:01:51.4]} 16. Ne4 {[%clk 0:01:36.3]}
16... Bb6 {[%clk 0:01:50.4]} 17. Nd6 {[%clk 0:01:34.3]} 17... Qa4 {[%clk
0:01:47.1]} 18. e4 {[%clk 0:01:21.9]} 18... Nc7 {[%clk 0:01:28.8]} 19. b3 {[%clk
0:01:21.5]} 19... Qa6 {[%clk 0:01:24.2]} 20. Nc4 {[%clk 0:01:06.7]} 20... Bc5
{[%clk 0:01:20.2]} 21. Be3 {[%clk 0:01:06.4]} 21... Bb4 {[%clk 0:01:17.5]} 22.
a4 {[%clk 0:00:55.8]} 22... Ne6 {[%clk 0:01:12.8]} 23. Rd7 {[%clk 0:00:47.6]}
23... b5 {[%clk 0:01:10.8]} 24. Nd6 {[%clk 0:00:47.8]} 24... Bc3 {[%clk
0:01:03.1]} 25. Rd1 {[%clk 0:00:30.5]} 25... Bxe5 {[%clk 0:01:02.1]} 26. Nxf7
{[%clk 0:00:26.6]} 26... Bf6 {[%clk 0:01:01.9]} 27. Qg4 {[%clk 0:00:15.5]} 27...
c5 {[%clk 0:00:50]} 28. Nh6+ {[%clk 0:00:15.1]} 28... Kh8 {[%clk 0:00:48.2]} 29.
axb5 {[%clk 0:00:15.2]} 29... Qb6 {[%clk 0:00:45.2]} 30. Nf7+ {[%clk 0:00:15.4]}
30... Kg8 {[%clk 0:00:39.6]} 31. R1d6 {[%clk 0:00:11.8]} 31... h5 {[%clk
0:00:22.8]} 32. Qxe6 {[%clk 0:00:12.2]} 32... Rae8 {[%clk 0:00:19.3]} 33. Qd5
{[%clk 0:00:08.5]} 33... Qxb5 {[%clk 0:00:16.1]} 34. Ng5+ {[%clk 0:00:06.8]}
34... Kh8 {[%clk 0:00:16.1]} 35. Ne6 {[%clk 0:00:04.5]} 35... Rg8 {[%clk
0:00:11.5]} 36. e5 {[%clk 0:00:03.4]} 36... Be7 {[%clk 0:00:06.1]} 37. Rc6
{[%clk 0:00:03.8]} 37... Qe2 {[%clk 0:00:05.8]} 38. Rcc7 {[%clk 0:00:04.3]}
38... h4 {[%clk 0:00:05.3]} 39. gxh4 {[%clk 0:00:03.3]} 39... Qg4+ {[%clk
0:00:05.5]} 40. Kf1 {[%clk 0:00:04.5]} 40... Qh3+ {[%clk 0:00:05.5]} 41. Ke1
{[%clk 0:00:05.6]} 41... Qxh4 {[%clk 0:00:06.3]} 42. Nf4 {[%clk 0:00:04.7]}
42... Qg5 {[%clk 0:00:03.5]} 43. e6 {[%clk 0:00:03.5]} 43... Bf6 {[%clk
0:00:02.4]} 44. Qxg5 {[%clk 0:00:03.7]} 44... Bxg5 {[%clk 0:00:03.6]} 45. e7
{[%clk 0:00:05.1]} 1-0

[Event "*** Titled Tuesday 3|2 Blitz"]
[Site "Chess.com"]
[Date "2015.06.02"]
[Round "8"]
[White "kesarev"]
[Black "stepanosinovsky"]
[Result "0-1"]
[WhiteElo "2148"]
[BlackElo "2292"]
[TimeControl "180+2"]
[EndTime "12:43:43 PDT"]
[Termination "stepanosinovsky won by resignation"]

1. Nf3 {[%clk 0:03:01.9]} 1... Nc6 {[%clk 0:03:00.6]} 2. d4 {[%clk 0:03:00.9]}
2... d6 {[%clk 0:03:02]} 3. h3 {[%clk 0:02:58.1]} 3... e5 {[%clk 0:03:03]} 4. d5
{[%clk 0:02:57.1]} 4... Nce7 {[%clk 0:03:03.9]} 5. e4 {[%clk 0:02:53.7]} 5... g6
{[%clk 0:03:02]} 6. Bb5+ {[%clk 0:02:43.6]} 6... c6 {[%clk 0:03:02.7]} 7. Ba4
{[%clk 0:02:44.4]} 7... Nf6 {[%clk 0:03:00]} 8. Nc3 {[%clk 0:02:02]} 8... b5
{[%clk 0:02:46.5]} 9. Bb3 {[%clk 0:02:02.8]} 9... c5 {[%clk 0:02:47.5]} 10. Nxb5
{[%clk 0:01:57.1]} 10... Nxe4 {[%clk 0:02:47.9]} 11. O-O {[%clk 0:01:56.2]}
11... a6 {[%clk 0:02:32.9]} 12. Nc3 {[%clk 0:01:51.1]} 12... Nxc3 {[%clk
0:02:33.1]} 13. bxc3 {[%clk 0:01:52.1]} 13... Bd7 {[%clk 0:02:32.1]} 14. Nxe5
{[%clk 0:01:18.6]} 14... dxe5 {[%clk 0:01:20]} 15. d6 {[%clk 0:01:20.2]} 15...
Bg7 {[%clk 0:00:18.6]} 16. dxe7 {[%clk 0:01:03.5]} 16... Qxe7 {[%clk 0:00:20.5]}
17. Qd5 {[%clk 0:00:55.2]} 17... O-O {[%clk 0:00:20.3]} 18. Be3 {[%clk
0:00:53.2]} 18... Rac8 {[%clk 0:00:20.3]} 19. Rad1 {[%clk 0:00:52.6]} 19... Be6
{[%clk 0:00:20.8]} 20. Qd6 {[%clk 0:00:53.3]} 20... Qxd6 {[%clk 0:00:20.9]} 21.
Rxd6 {[%clk 0:00:53.8]} 21... c4 {[%clk 0:00:22.1]} 22. Ba4 {[%clk 0:00:53.9]}
22... Rfd8 {[%clk 0:00:21.7]} 23. Rfd1 {[%clk 0:00:47.1]} 23... Bf6 {[%clk
0:00:21.6]} 24. Rxd8+ {[%clk 0:00:20.4]} 24... Rxd8 {[%clk 0:00:23.5]} 25. Rxd8+
{[%clk 0:00:20.9]} 25... Bxd8 {[%clk 0:00:25.4]} 26. Bc5 {[%clk 0:00:21.8]}
26... Ba5 {[%clk 0:00:25.1]} 27. Bb4 {[%clk 0:00:21]} 27... Bc7 {[%clk
0:00:25.5]} 28. Bc6 {[%clk 0:00:19.8]} 28... f5 {[%clk 0:00:26.1]} 29. Kf1
{[%clk 0:00:19.1]} 29... Kf7 {[%clk 0:00:26.3]} 30. Bb7 {[%clk 0:00:19]} 30...
a5 {[%clk 0:00:27.2]} 31. Bc5 {[%clk 0:00:19.8]} 31... Kf6 {[%clk 0:00:28.2]}
32. Ke2 {[%clk 0:00:19.9]} 32... h5 {[%clk 0:00:28.5]} 33. h4 {[%clk 0:00:20.4]}
33... Bd8 {[%clk 0:00:27.7]} 34. Be3 {[%clk 0:00:19.1]} 34... f4 {[%clk
0:00:27.5]} 35. Bc5 {[%clk 0:00:19.8]} 35... Bg4+ {[%clk 0:00:27.6]} 36. Ke1
{[%clk 0:00:18]} 36... Bf5 {[%clk 0:00:27.8]} 37. Bd5 {[%clk 0:00:17]} 37... Be6
{[%clk 0:00:27.7]} 38. Be4 {[%clk 0:00:16.9]} 38... Kf7 {[%clk 0:00:25.1]} 39.
g3 {[%clk 0:00:16.7]} 39... g5 {[%clk 0:00:24.6]} 40. Bd6 {[%clk 0:00:12.9]}
40... gxh4 {[%clk 0:00:18.7]} 41. gxh4 {[%clk 0:00:14.8]} 41... Bxh4 {[%clk
0:00:15.6]} 42. Bxe5 {[%clk 0:00:15.5]} 42... Bg5 {[%clk 0:00:16.9]} 43. Kf1
{[%clk 0:00:14.8]} 43... h4 {[%clk 0:00:17.6]} 44. Kg2 {[%clk 0:00:15.6]} 44...
Ke7 {[%clk 0:00:12.2]} 45. Kf3 {[%clk 0:00:12.5]} 45... h3 {[%clk 0:00:11.2]}
46. Bxf4 {[%clk 0:00:12]} 46... Bh4 {[%clk 0:00:11.7]} 47. Bg3 {[%clk
0:00:11.5]} 47... Bf6 {[%clk 0:00:12.7]} 48. Ke2 {[%clk 0:00:11.9]} 48... Bxc3
{[%clk 0:00:13.4]} 49. f4 {[%clk 0:00:12.6]} 49... Bg4+ {[%clk 0:00:11.6]} 50.
Kf2 {[%clk 0:00:13.3]} 50... Bd4+ {[%clk 0:00:12.5]} 51. Kf1 {[%clk 0:00:14.3]}
51... Kf6 {[%clk 0:00:13.5]} 52. Bh4+ {[%clk 0:00:14.7]} 52... Ke6 {[%clk
0:00:14.2]} 53. Bf2 {[%clk 0:00:15.6]} 53... Bc3 {[%clk 0:00:14]} 54. Kg1 {[%clk
0:00:16.6]} 54... Bd2 {[%clk 0:00:12.8]} 55. Bg3 {[%clk 0:00:16.9]} 55... Bf5
{[%clk 0:00:13.3]} 56. Bxf5+ {[%clk 0:00:08.4]} 56... Kxf5 {[%clk 0:00:14.3]}
57. Kh2 {[%clk 0:00:10]} 57... Bxf4 {[%clk 0:00:15.4]} 0-1

[Event "*** Titled Tuesday 3|2 Blitz"]
[Site "Chess.com"]
[Date "2015.06.02"]
[Round "8"]
[White "MinhGTrAn"]
[Black "VSERGUEI"]
[Result "0-1"]
[WhiteElo "2556"]
[BlackElo "2514"]
[TimeControl "180+2"]
[EndTime "12:44:13 PDT"]
[Termination "VSERGUEI won by resignation"]

1. d4 {[%clk 0:03:01.9]} 1... d5 {[%clk 0:03:00.4]} 2. c4 {[%clk 0:03:02.8]}
2... c6 {[%clk 0:03:01.5]} 3. Nc3 {[%clk 0:03:04.7]} 3... Nf6 {[%clk 0:03:01.6]}
4. cxd5 {[%clk 0:03:05.2]} 4... cxd5 {[%clk 0:03:02]} 5. Bf4 {[%clk 0:03:04.7]}
5... Nc6 {[%clk 0:03:01.4]} 6. e3 {[%clk 0:02:55.9]} 6... a6 {[%clk 0:03:01.4]}
7. Rc1 {[%clk 0:02:56.5]} 7... Bg4 {[%clk 0:03:00.2]} 8. f3 {[%clk 0:02:57.1]}
8... Bd7 {[%clk 0:03:00.6]} 9. g4 {[%clk 0:02:57.8]} 9... e6 {[%clk 0:03:00.3]}
10. Bd3 {[%clk 0:02:58.3]} 10... Be7 {[%clk 0:02:56.8]} 11. h4 {[%clk
0:02:41.1]} 11... Rc8 {[%clk 0:02:56.3]} 12. h5 {[%clk 0:02:40.8]} 12... h6
{[%clk 0:02:56.4]} 13. Nge2 {[%clk 0:02:40.2]} 13... Na5 {[%clk 0:02:56.2]} 14.
Kf2 {[%clk 0:02:31.4]} 14... b5 {[%clk 0:02:54.7]} 15. b3 {[%clk 0:02:18.7]}
15... Ba3 {[%clk 0:02:51.2]} 16. Rc2 {[%clk 0:02:19.9]} 16... Nc6 {[%clk
0:02:50.6]} 17. Nb1 {[%clk 0:02:19.5]} 17... Be7 {[%clk 0:02:50.5]} 18. a3
{[%clk 0:02:20.8]} 18... Na5 {[%clk 0:02:45.1]} 19. Be5 {[%clk 0:02:12.9]} 19...
Rc6 {[%clk 0:02:35.5]} 20. Nf4 {[%clk 0:01:44.7]} 20... Qb6 {[%clk 0:02:34.1]}
21. Re1 {[%clk 0:01:38.1]} 21... O-O {[%clk 0:02:28.4]} 22. Rg1 {[%clk
0:01:28.8]} 22... Rfc8 {[%clk 0:02:24.2]} 23. Kf1 {[%clk 0:00:51.9]} 23... Kf8
{[%clk 0:01:49.7]} 24. g5 {[%clk 0:00:46.5]} 24... hxg5 {[%clk 0:01:48.5]} 25.
Rxg5 {[%clk 0:00:48.4]} 25... Rxc2 {[%clk 0:01:39.1]} 26. Bxc2 {[%clk
0:00:50.3]} 26... Nc6 {[%clk 0:01:29.5]} 27. Nd3 {[%clk 0:00:28.7]} 27... Nxe5
{[%clk 0:01:12.4]} 28. Nxe5 {[%clk 0:00:30.6]} 28... Qc7 {[%clk 0:01:13.4]} 29.
Rg2 {[%clk 0:00:28.4]} 29... Nxh5 {[%clk 0:01:10.1]} 30. Bd3 {[%clk 0:00:14]}
30... Qc1 {[%clk 0:01:06.7]} 31. Ke2 {[%clk 0:00:06.8]} 31... Be8 {[%clk
0:00:55.2]} 32. Qxc1 {[%clk 0:00:06.6]} 32... Rxc1 {[%clk 0:00:54.7]} 33. Rh2
{[%clk 0:00:07.1]} 33... g6 {[%clk 0:00:50.8]} 34. b4 {[%clk 0:00:08.1]} 34...
Kg7 {[%clk 0:00:48.3]} 35. Kd2 {[%clk 0:00:09.4]} 35... Rg1 {[%clk 0:00:47.4]}
36. Nc3 {[%clk 0:00:10]} 36... f6 {[%clk 0:00:46.4]} 37. Ng4 {[%clk 0:00:09.4]}
37... Bd6 {[%clk 0:00:44.7]} 38. Rf2 {[%clk 0:00:08.5]} 38... Ra1 {[%clk
0:00:37.3]} 39. Kc2 {[%clk 0:00:08.1]} 39... Rxa3 {[%clk 0:00:36.6]} 40. Rg2
{[%clk 0:00:04.9]} 40... Bxb4 {[%clk 0:00:35.7]} 41. Nd1 {[%clk 0:00:05.6]}
41... Ra2+ {[%clk 0:00:32.7]} 42. Nb2 {[%clk 0:00:06.3]} 42... Ba3 {[%clk
0:00:33.7]} 43. Kb3 {[%clk 0:00:07.9]} 43... Rxb2+ {[%clk 0:00:34.6]} 44. Rxb2
{[%clk 0:00:09.8]} 44... Bxb2 {[%clk 0:00:35.7]} 45. Kxb2 {[%clk 0:00:11.7]}
45... a5 {[%clk 0:00:35.6]} 46. Kb3 {[%clk 0:00:11.9]} 46... Ng3 {[%clk
0:00:35.4]} 47. Nf2 {[%clk 0:00:11.9]} 47... Nf5 {[%clk 0:00:35.8]} 48. Nd1
{[%clk 0:00:11.8]} 48... Kh6 {[%clk 0:00:34.2]} 49. Be2 {[%clk 0:00:12.8]} 49...
Kg5 {[%clk 0:00:33.7]} 50. Kc3 {[%clk 0:00:13.2]} 50... Kh4 {[%clk 0:00:34.1]}
51. e4 {[%clk 0:00:13.2]} 51... Ne7 {[%clk 0:00:33.4]} 52. Kd3 {[%clk
0:00:09.8]} 52... Kg3 {[%clk 0:00:33.3]} 53. Ke3 {[%clk 0:00:11.1]} 53... b4
{[%clk 0:00:32.7]} 54. Nf2 {[%clk 0:00:12.5]} 54... a4 {[%clk 0:00:31.7]} 55. f4
{[%clk 0:00:05.9]} 55... a3 {[%clk 0:00:30.6]} 56. Nh1+ {[%clk 0:00:05.5]} 56...
Kh2 {[%clk 0:00:30.3]} 57. Bf3 {[%clk 0:00:03.2]} 57... dxe4 {[%clk 0:00:29.7]}
58. Bxe4 {[%clk 0:00:03.3]} 58... Bc6 {[%clk 0:00:30.1]} 59. Nf2 {[%clk
0:00:02.8]} 59... Bxe4 {[%clk 0:00:28.5]} 60. Nxe4 {[%clk 0:00:04.7]} 60... a2
{[%clk 0:00:29.1]} 61. Nxf6 {[%clk 0:00:04.8]} 61... Nd5+ {[%clk 0:00:28.8]} 62.
Nxd5 {[%clk 0:00:05]} 62... exd5 {[%clk 0:00:29.6]} 63. Kf3 {[%clk 0:00:06.5]}
63... a1=Q {[%clk 0:00:30.1]} 64. Kg4 {[%clk 0:00:08.4]} 0-1

[Event "*** Titled Tuesday 3|2 Blitz"]
[Site "Chess.com"]
[Date "2015.06.02"]
[Round "9"]
[White "Daniel_Fridman"]
[Black "Konavets"]
[Result "1-0"]
[WhiteElo "2554"]
[BlackElo "2462"]
[TimeControl "180+2"]
[EndTime "12:48:54 PDT"]
[Termination "Daniel_Fridman won by resignation"]

1. d4 {[%clk 0:03:01.9]} 1... Nf6 {[%clk 0:03:00]} 2. c4 {[%clk 0:02:57.9]} 2...
e6 {[%clk 0:03:01.4]} 3. Nc3 {[%clk 0:02:58.1]} 3... Bb4 {[%clk 0:03:02.2]} 4.
Qc2 {[%clk 0:02:58.6]} 4... O-O {[%clk 0:03:02.9]} 5. e4 {[%clk 0:02:58.3]} 5...
d5 {[%clk 0:03:03.4]} 6. e5 {[%clk 0:02:59.4]} 6... Ne4 {[%clk 0:03:04.8]} 7. a3
{[%clk 0:03:00.2]} 7... Bxc3+ {[%clk 0:03:05.1]} 8. bxc3 {[%clk 0:03:02.1]} 8...
c5 {[%clk 0:03:06.7]} 9. Bd3 {[%clk 0:03:03.3]} 9... cxd4 {[%clk 0:03:02]} 10.
cxd4 {[%clk 0:03:03.7]} 10... Nc6 {[%clk 0:03:00.4]} 11. Ne2 {[%clk 0:03:02.8]}
11... f6 {[%clk 0:02:16.5]} 12. cxd5 {[%clk 0:02:22.8]} 12... exd5 {[%clk
0:02:16.7]} 13. O-O {[%clk 0:02:07]} 13... fxe5 {[%clk 0:02:16.8]} 14. dxe5
{[%clk 0:02:07.4]} 14... Nxe5 {[%clk 0:02:16.6]} 15. Bxe4 {[%clk 0:02:09]} 15...
dxe4 {[%clk 0:02:16.9]} 16. Qxe4 {[%clk 0:02:10.9]} 16... Nc6 {[%clk 0:02:14]}
17. Bb2 {[%clk 0:02:10.4]} 17... Bf5 {[%clk 0:02:14.4]} 18. Qc4+ {[%clk
0:02:10.5]} 18... Kh8 {[%clk 0:02:13.6]} 19. Rad1 {[%clk 0:02:08.9]} 19... Qg5
{[%clk 0:02:09]} 20. Ng3 {[%clk 0:02:08]} 20... Bg6 {[%clk 0:02:08.2]} 21. f4
{[%clk 0:02:08.6]} 21... Qh5 {[%clk 0:02:00.1]} 22. Nxh5 {[%clk 0:02:06.5]}
22... Bf7 {[%clk 0:01:44.7]} 23. Qc3 {[%clk 0:02:02]} 1-0

[Event "*** Titled Tuesday 3|2 Blitz"]
[Site "Chess.com"]
[Date "2015.06.02"]
[Round "9"]
[White "Keaton87"]
[Black "Colombiano07"]
[Result "0-1"]
[WhiteElo "2388"]
[BlackElo "2037"]
[TimeControl "180+2"]
[EndTime "12:50:25 PDT"]
[Termination "Colombiano07 won by resignation"]

1. d4 {[%clk 0:02:29.3]} 1... e6 {[%clk 0:03:01.9]} 2. e4 {[%clk 0:02:28.8]}
2... d5 {[%clk 0:03:02.5]} 3. Nd2 {[%clk 0:02:28.9]} 3... Nf6 {[%clk 0:03:00.8]}
4. e5 {[%clk 0:02:29.8]} 4... Ng8 {[%clk 0:03:00.5]} 5. Bd3 {[%clk 0:02:30.7]}
5... c5 {[%clk 0:03:01.7]} 6. c3 {[%clk 0:02:31.6]} 6... Qb6 {[%clk 0:03:01.4]}
7. Ne2 {[%clk 0:02:28.7]} 7... Nc6 {[%clk 0:03:02.3]} 8. Nf3 {[%clk 0:02:28.2]}
8... Nge7 {[%clk 0:03:02.9]} 9. O-O {[%clk 0:02:28.6]} 9... cxd4 {[%clk
0:03:01.6]} 10. cxd4 {[%clk 0:02:29.2]} 10... Nf5 {[%clk 0:03:02.4]} 11. Bb1
{[%clk 0:02:12.5]} 11... Be7 {[%clk 0:02:58]} 12. b3 {[%clk 0:02:12]} 12... O-O
{[%clk 0:02:58.5]} 13. g4 {[%clk 0:02:09.5]} 13... Nh4 {[%clk 0:02:59]} 14. Nxh4
{[%clk 0:02:09.9]} 14... Bxh4 {[%clk 0:03:00.9]} 15. Be3 {[%clk 0:02:10.5]}
15... Be7 {[%clk 0:02:59.3]} 16. Kg2 {[%clk 0:02:10.3]} 16... f6 {[%clk
0:03:00.2]} 17. exf6 {[%clk 0:02:08.4]} 17... Bxf6 {[%clk 0:03:02.1]} 18. Qd3
{[%clk 0:02:08.1]} 18... g6 {[%clk 0:03:01.9]} 19. h4 {[%clk 0:02:00.3]} 19...
Qd8 {[%clk 0:02:45.6]} 20. h5 {[%clk 0:02:00.6]} 20... e5 {[%clk 0:02:23.8]} 21.
hxg6 {[%clk 0:01:59.4]} 21... e4 {[%clk 0:02:25]} 22. gxh7+ {[%clk 0:02:00.3]}
22... Kh8 {[%clk 0:02:25.9]} 23. Qd2 {[%clk 0:02:01.5]} 23... Bxg4 {[%clk
0:02:24.7]} 24. Rg1 {[%clk 0:01:57.4]} 24... Rf7 {[%clk 0:02:15.5]} 25. Nf4
{[%clk 0:01:55.6]} 25... Rg7 {[%clk 0:02:12.6]} 26. Kf1 {[%clk 0:01:55.9]} 26...
Qb6 {[%clk 0:02:08.4]} 27. Rxg4 {[%clk 0:01:37.8]} 27... Rxg4 {[%clk 0:02:08.5]}
28. Qe2 {[%clk 0:01:39.2]} 28... Rxf4 {[%clk 0:02:06.2]} 29. Bxf4 {[%clk
0:01:37.6]} 29... Qxd4 {[%clk 0:02:06.9]} 30. Qg4 {[%clk 0:01:17.7]} 30... Qxa1
{[%clk 0:02:04.9]} 31. Kg2 {[%clk 0:01:18.8]} 31... Qxb1 {[%clk 0:02:01.7]} 32.
Qg6 {[%clk 0:01:12]} 32... Qb2 {[%clk 0:01:55.1]} 33. Bh6 {[%clk 0:01:10.3]}
33... Ne7 {[%clk 0:01:49]} 34. Qf7 {[%clk 0:01:10.2]} 34... Qe5 {[%clk
0:01:42.2]} 0-1

[Event "*** Titled Tuesday 3|2 Blitz"]
[Site "Chess.com"]
[Date "2015.06.02"]
[Round "9"]
[White "facu57"]
[Black "megarompa"]
[Result "0-1"]
[WhiteElo "2220"]
[BlackElo "2696"]
[TimeControl "180+2"]
[EndTime "12:50:52 PDT"]
[Termination "megarompa won by resignation"]

1. e4 {[%clk 0:03:01.9]} 1... e5 {[%clk 0:02:59.7]} 2. Nf3 {[%clk 0:03:01.7]}
2... Nc6 {[%clk 0:03:01.2]} 3. Bc4 {[%clk 0:03:02.2]} 3... Nf6 {[%clk
0:03:01.4]} 4. d3 {[%clk 0:03:01.7]} 4... Be7 {[%clk 0:02:56.1]} 5. O-O {[%clk
0:03:02.2]} 5... O-O {[%clk 0:02:57.2]} 6. Nc3 {[%clk 0:03:02.5]} 6... d6 {[%clk
0:02:58.1]} 7. h3 {[%clk 0:03:03.5]} 7... Be6 {[%clk 0:02:55.5]} 8. Bb3 {[%clk
0:03:03.7]} 8... Nd7 {[%clk 0:02:53.7]} 9. Re1 {[%clk 0:03:00.1]} 9... Nc5
{[%clk 0:02:52.9]} 10. d4 {[%clk 0:02:48.3]} 10... exd4 {[%clk 0:02:46]} 11.
Nxd4 {[%clk 0:02:46.4]} 11... Nxd4 {[%clk 0:02:46.3]} 12. Qxd4 {[%clk
0:02:47.4]} 12... Bf6 {[%clk 0:02:47.1]} 13. Qd2 {[%clk 0:02:41.2]} 13... Re8
{[%clk 0:02:41]} 14. f3 {[%clk 0:02:32]} 14... a5 {[%clk 0:02:41.8]} 15. Bxe6
{[%clk 0:02:28.8]} 15... Nxe6 {[%clk 0:02:42.9]} 16. Qf2 {[%clk 0:02:29.3]}
16... c6 {[%clk 0:02:38.6]} 17. Rd1 {[%clk 0:02:28.4]} 17... a4 {[%clk
0:02:37.9]} 18. a3 {[%clk 0:02:28.6]} 18... Be5 {[%clk 0:02:36.1]} 19. Ne2
{[%clk 0:02:28.9]} 19... Qe7 {[%clk 0:02:33.9]} 20. c3 {[%clk 0:02:29.4]} 20...
Nc5 {[%clk 0:02:35.1]} 21. Be3 {[%clk 0:02:26.8]} 21... g6 {[%clk 0:02:35.9]}
22. Bxc5 {[%clk 0:02:25.7]} 22... dxc5 {[%clk 0:02:34.9]} 23. Rd2 {[%clk
0:02:27.2]} 23... Rad8 {[%clk 0:02:33.2]} 24. Rad1 {[%clk 0:02:28.1]} 24... Bc7
{[%clk 0:02:26.5]} 25. Nc1 {[%clk 0:02:26.3]} 25... Bf4 {[%clk 0:02:23.6]} 26.
Rxd8 {[%clk 0:02:09.1]} 26... Rxd8 {[%clk 0:02:25.5]} 27. Rxd8+ {[%clk
0:02:09.8]} 27... Qxd8 {[%clk 0:02:23.4]} 28. Qc2 {[%clk 0:02:11.3]} 28... c4
{[%clk 0:02:24.3]} 29. Ne2 {[%clk 0:02:07.5]} 29... Be3+ {[%clk 0:02:20.2]} 30.
Kh2 {[%clk 0:02:08.4]} 30... Qd3 {[%clk 0:02:17.7]} 31. Nd4 {[%clk 0:00:42.2]}
31... Bxd4 {[%clk 0:02:15.3]} 32. Qxa4 {[%clk 0:00:42.5]} 32... Be5+ {[%clk
0:02:15.5]} 33. Kg1 {[%clk 0:00:43.8]} 33... Qe3+ {[%clk 0:02:14.2]} 34. Kf1
{[%clk 0:00:44.8]} 34... Bg3 {[%clk 0:02:11.3]} 35. Qc2 {[%clk 0:00:43.6]} 35...
b5 {[%clk 0:01:57.6]} 0-1

[Event "*** Titled Tuesday 3|2 Blitz"]
[Site "Chess.com"]
[Date "2015.06.02"]
[Round "9"]
[White "PowerThinking2650"]
[Black "GregShahade"]
[Result "0-1"]
[WhiteElo "2060"]
[BlackElo "2304"]
[TimeControl "180+2"]
[EndTime "12:51:01 PDT"]
[Termination "GregShahade won by resignation"]

1. e4 {[%clk 0:03:01.9]} 1... e5 {[%clk 0:02:59.9]} 2. Nf3 {[%clk 0:03:01.7]}
2... Nc6 {[%clk 0:03:00.9]} 3. d4 {[%clk 0:03:00.4]} 3... exd4 {[%clk
0:03:01.4]} 4. Nxd4 {[%clk 0:03:01.3]} 4... Nf6 {[%clk 0:03:02.1]} 5. Nxc6
{[%clk 0:03:02.1]} 5... bxc6 {[%clk 0:03:02.3]} 6. e5 {[%clk 0:03:03.1]} 6...
Qe7 {[%clk 0:03:02.6]} 7. Qe2 {[%clk 0:03:04.2]} 7... Nd5 {[%clk 0:03:03.9]} 8.
c4 {[%clk 0:03:05.2]} 8... Nb6 {[%clk 0:03:05.1]} 9. Nc3 {[%clk 0:02:58.6]} 9...
a5 {[%clk 0:03:04.1]} 10. Qe4 {[%clk 0:02:52.4]} 10... g6 {[%clk 0:03:03.5]} 11.
Bd3 {[%clk 0:02:45.2]} 11... Bg7 {[%clk 0:02:56.4]} 12. f4 {[%clk 0:02:45.3]}
12... O-O {[%clk 0:02:52.2]} 13. O-O {[%clk 0:02:43.1]} 13... Ba6 {[%clk
0:02:48.6]} 14. b3 {[%clk 0:02:37.6]} 14... d6 {[%clk 0:02:43.1]} 15. Ba3 {[%clk
0:02:28.3]} 15... c5 {[%clk 0:01:52.8]} 16. Rae1 {[%clk 0:02:18.3]} 16... Rfe8
{[%clk 0:01:44.7]} 17. exd6 {[%clk 0:01:48.4]} 17... Qd7 {[%clk 0:01:31.2]} 18.
dxc7 {[%clk 0:00:44.1]} 18... Rxe4 {[%clk 0:01:23.7]} 19. Nxe4 {[%clk
0:00:40.1]} 19... Qxd3 {[%clk 0:01:22]} 20. Nxc5 {[%clk 0:00:36.1]} 20... Bd4+
{[%clk 0:01:16]} 21. Kh1 {[%clk 0:00:36.6]} 21... Bxc5 {[%clk 0:01:16.9]} 22.
Bxc5 {[%clk 0:00:37.1]} 22... Nd7 {[%clk 0:01:18]} 23. Rd1 {[%clk 0:00:36.5]}
23... Qf5 {[%clk 0:01:18]} 24. Rd5 {[%clk 0:00:35.8]} 24... Qxd5 {[%clk
0:01:16.3]} 25. cxd5 {[%clk 0:00:36.3]} 25... Bxf1 {[%clk 0:01:17.1]} 26. Ba7
{[%clk 0:00:31.9]} 26... Ba6 {[%clk 0:01:17.6]} 0-1